[Event "SixDays Budapest March GM A 2025"]
[Site "Budapest"]
[Date "2025.03.29"]
[Round "9.2"]
[White "Aczel, Gergely"]
[Black "Zia, Tahsin Tajwar"]
[Result "1/2-1/2"]
[Annotator "TA"]
[ECO "D35"]
[WhiteElo "2487"]
[BlackElo "2327"]
[PlyCount "157"]
[EventDate "2025.03.23"]
[EventCountry "HUN"]
[SourceTitle "playchess.com"]
[Source "ChessBase"]
[SourceQuality "1"]
[TimeControl "5400+30"]

{[%evp 12,157,30,26,34,46,33,31,59,0,53,57,60,64,50,-2,0,-3,-7,-16,57,-33,39,10,139,37,38,2,46,2,90,99,83,91,122,137,143,63,121,48,45,37,108,110,140,133,141,135,153,134,141,131,141,147,141,133,127,116,141,83,86,64,158,45,44,49,59,64,39,40,80,83,76,89,69,16,12,15,21,24,13,0,0,0,14,14,50,49,72,72,79,61,61,61,58,32,49,49,49,49,49,38,38,38,37,15,15,15,15,17,30,15,16,16,37,0,8,8,38,38,38,8,8,0,38,16,37,37,37,37,37,0,37,0,0,0,0,0,0,0,0,0,0,0,0,0,0,0]} 1. d4 {[%emt 0:00:43]} d5 2. c4 {[%emt 0:01:46]} e6 {[%emt 0:01:11]} 3. Nc3 {[%emt 0:00:05]} Nf6 {[%emt 0:00:12]} 4. cxd5 {[%emt 0:00:04]} exd5 {[%emt 0:00:05]} 5. Bg5 {[%emt 0:00:03][%cal Bc1g5,Bg5h4,Bh4g3,Bg3h2][%mdl 32]} Bb4 {[%emt 0:00:46]} 6. e3 {[%emt 0:00:08]} h6 {[%emt 0:00:06]} 7. Bh4 {[%emt 0:00:04]} g5 {[%emt 0:00:05] D35: Queen's Gambit Declined: Exchange Variation.} 8. Bg3 {[%emt 0:00:03]} Ne4 {[%emt 0:00:06]} 9. Nge2 {[%emt 0:00:04]} h5 {[%emt 0:00:13] White is slightly better.} 10. h3 {[%emt 0:00:04]} (10. h4 $14) 10... Nc6 {[%emt 0:00:46]} (10... Bxc3+ $11 11. Nxc3 Nxg3 12. fxg3 Be6) 11. Bh2 $1 $14 {[%emt 0:00:08]} Qf6 {[%emt 0:00:27][%csl Ge4][%cal Rf6f2]} 12. f3 {[%emt 0:04:49]} Nxc3 {[%emt 0:00:30]} 13. bxc3 $146 {[%emt 0:14:13]} (13. Nxc3 $14 Bf5 14. Bb5 Bxc3+ 15. bxc3) (13. Nxc3 Bf5 14. Bb5 O-O-O 15. O-O Bd6 16. Bxd6 Qxd6 17. Bxc6 Qxc6 18. Rc1 Kb8 19. Qb3 {0-1 Erigaisi,A (2701)-Abdusattorov,N (2731) Chessable Masters Div 2 Win rapid 2023 (2.2)}) 13... Bd6 $11 {[%emt 0:00:45]} 14. Bxd6 {[%emt 0:00:40]} Qxd6 {[%emt 0:00:27]} 15. h4 {[%emt 0:00:28]} Qe7 {[%emt 0:06:51]} (15... gxh4 $11 16. Kf2 Ne7) 16. Kf2 {[%emt 0:30:59]} (16. Qb3 $14) 16... gxh4 {[%emt 0:11:26]} (16... Bf5 $15) 17. Nf4 $14 {[%emt 0:00:07] White sacrificed a pawn} Be6 {[%emt 0:00:06]} (17... Qg5 $11) 18. Bb5 {[%emt 0:00:54]} (18. Qb3 $1 $16 {[%cal Rb3b7]} O-O-O 19. Rb1) 18... Qg5 {[%emt 0:04:03]} 19. Qg1 {[%emt 0:11:51][%mdl 1024] White has compensation.} a6 {[%emt 0:03:28]} 20. Ba4 {[%emt 0:06:44]} b5 {[%emt 0:13:45]} (20... O-O-O $1 $11 {remains equal.}) 21. Bc2 $16 {[%emt 0:00:02]} Qg3+ {[%emt 0:15:10]} 22. Ke2 {[%emt 0:00:27]} Rg8 {[%emt 0:02:01]} 23. Qf2 $1 {[%emt 0:05:19]} (23. Nxh5 $6 Qxg2+ 24. Qf2 O-O-O $11) 23... h3 {[%emt 0:03:21]} 24. gxh3 {[%emt 0:04:40]} (24. Qxg3 $16 Rxg3 25. gxh3) 24... h4 {[%emt 0:05:05] [#]} (24... Qxf2+ $1 $14 25. Kxf2 h4) 25. Rag1 {[%emt 0:00:28]} ({Better is} 25. Qxg3 $1 $16 Rxg3 26. Rag1) 25... Qxf2+ $14 {[%emt 0:00:05]} 26. Kxf2 {[%emt 0:00:04]} Ke7 {[%emt 0:00:43]} ({Black should try} 26... Kd7 $14) 27. e4 $16 {[%emt 0:04:27]} Kd6 {[%emt 0:00:57]} 28. exd5 {[%emt 0:06:12]} Bxd5 {[%emt 0:00:26]} 29. Nxd5 {[%emt 0:00:07]} Kxd5 {[%emt 0:00:08]} 30. Bb3+ {[%emt 0:00:46]} Kd6 {[%emt 0:00:06]} 31. Bxf7 {[%emt 0:00:12]} Rxg1 {[%emt 0:00:37]} 32. Rxg1 {[%emt 0:00:02][%mdl 4096] Endgame KRB-KRN. White is a pawn up.} (32. Kxg1 Rf8 33. Bh5 Ne7 $11 (33... b4 34. cxb4 Nxb4 35. Kf2 $11)) 32... Ne7 {[%emt 0:00:01] Against Rg6+} 33. Rg4 {[%emt 0:03:16]} Rh8 {[%emt 0:00:36]} 34. Ke3 {[%emt 0:04:02] White is more active.} a5 {[%emt 0:05:35]} 35. Ke4 {[%emt 0:00:21]} (35. c4 $142) 35... Rf8 {[%emt 0:01:59]} 36. Rf4 {[%emt 0:00:29] Hoping for Rf6+.} Nc8 {[%emt 0:03:11] [#]} (36... c6 $14) 37. Bg6 {[%emt 0:01:26]} (37. Bb3 $1 $16 Rxf4+ 38. Kxf4) 37... Rg8 $14 {[%emt 0:00:42]} 38. Rf6+ {[%emt 0:00:50]} Ke7 {[%emt 0:00:01]} 39. Kf5 {[%emt 0:01:16]} Nd6+ {[%emt 0:00:21]} 40. Kg5 {[%emt 0:00:03][%cal Od4d5]} b4 {[%emt 0:01:03]} 41. cxb4 {[%emt 0:01:17]} axb4 {[%emt 0:00:01]} 42. d5 {[%emt 0:00:10][%cal Of6f4]} Ra8 {[%emt 0:02:04]} 43. Rf4 {[%emt 0:00:12]} (43. Re6+ $14 Kd7 44. Re2 (44. Kxh4 Rxa2 45. f4 Rg2 $15)) 43... Rxa2 $11 {[%emt 0:00:27]} 44. Rxb4 {[%emt 0:00:03]} Rg2+ $1 {[%emt 0:01:28]} 45. Rg4 {[%emt 0:00:53]} (45. Kxh4 $2 {loses.} Rxg6 46. Rf4 Rg1 $19) 45... Rg3 {[%emt 0:00:01]} 46. f4 {[%emt 0:01:38][%cal Bf3f4,Bf4f5][%mdl 32]} Rxh3 {[%emt 0:00:11]} 47. Rxh4 {[%emt 0:00:12]} Rg3+ {[%emt 0:00:48]} 48. Rg4 {[%emt 0:00:09]} Rh3 {[%emt 0:01:35]} 49. Rg1 {[%emt 0:00:19]} Rh2 {[%emt 0:02:02]} 50. Re1+ {[%emt 0:00:12]} Kd7 {[%emt 0:00:30]} 51. f5 {[%emt 0:00:16]} Rd2 {[%emt 0:03:05]} 52. f6 {[%emt 0:00:37]} Rxd5+ {[%emt 0:00:10]} 53. Kh6 {[%emt 0:00:12]} Rd2 {[%emt 0:00:45]} 54. f7 {[%emt 0:01:30]} Nxf7+ {[%emt 0:00:21]} 55. Bxf7 $14 {[%emt 0:00:02] KRB-KR} c5 {[%emt 0:00:40]} 56. Be6+ {[%emt 0:01:48]} Kc6 {[%emt 0:00:16]} 57. Kg5 {[%emt 0:00:10]} Rd4 {[%emt 0:00:43]} 58. Kf5 {[%emt 0:00:50]} c4 {[%emt 0:00:11]} 59. Ke5 {[%emt 0:00:26]} Kc5 {[%emt 0:00:17]} 60. Rc1 {[%emt 0:00:36]} Rh4 {[%emt 0:00:12]} 61. Bf5 {[%emt 0:00:22]} Kb4 {[%emt 0:01:01]} 62. Be4 {[%emt 0:00:11]} Kc5 {[%emt 0:00:46]} 63. Rb1 {[%emt 0:00:38]} Rh5+ {[%emt 0:00:45]} 64. Kf4 {[%emt 0:00:44]} Kd4 {[%emt 0:00:57]} 65. Rd1+ {[%emt 0:00:04]} Kc3 {[%emt 0:00:01]} 66. Rc1+ {[%emt 0:00:22]} Kd4 {[%emt 0:00:01]} 67. Rd1+ {[%emt 0:00:05]} Kc3 {[%emt 0:00:04]} 68. Rd8 {[%emt 0:00:19]} Rh4+ {[%emt 0:00:22]} 69. Ke3 {[%emt 0:00:46]} Rh3+ {[%emt 0:00:01]} 70. Ke2 {[%emt 0:00:15]} Rh2+ {[%emt 0:00:04]} 71. Ke3 {[%emt 0:00:40]} Rh3+ {[%emt 0:00:11]} 72. Bf3 {[%emt 0:00:06]} Kc2 {[%emt 0:00:20] The position is equal.} 73. Ke2 {[%emt 0:00:58]} Rh2+ {[%emt 0:00:21]} 74. Ke3 {[%emt 0:00:09]} c3 {[%emt 0:01:12]} 75. Bg4 {[%emt 0:00:58]} Kc1 {[%emt 0:00:49]} 76. Bf5 {[%emt 0:00:28]} c2 {[%emt 0:00:24]} 77. Rc8 {[%emt 0:00:37]} Kb2 {[%emt 0:01:00]} 78. Rb8+ {[%emt 0:00:05]} Kc3 {[%emt 0:00:12]} 79. Rc8+ {[%emt 0:00:18] White really could win this.   Weighted Error Value: White=0.24 (precise) /Black=0.24 (precise)   Mistake:       	White=9     	Black=8      Inaccurate:     	White=6     	Black=6      OK:         	White=27    	Black=31     Best:        	White=1     	Black=7      Strong:       	White=2     	Black=1} 1/2-1/2

[Event "SixDays Budapest March GM A 2025"]
[Site "Budapest"]
[Date "2025.03.29"]
[Round "9.3"]
[White "Borgaonkar Akshay"]
[Black "Jake Shanty"]
[Result "1-0"]
[Annotator "RC"]
[ECO "C42"]
[WhiteElo "2418"]
[BlackElo "2336"]
[PlyCount "113"]
[EventDate "2025.03.23"]
[EventCountry "HUN"]
[SourceTitle "playchess.com"]
[Source "ChessBase"]
[SourceQuality "1"]
[TimeControl "5400+30"]

1. e4 {[%emt 0:02:06]} e5 {[%emt 0:00:18]} 2. Nf3 {[%emt 0:00:06]} Nf6 {[%emt 0:00:10]} 3. Nxe5 {[%emt 0:00:05]} d6 {[%emt 0:00:08]} 4. Nf3 {[%emt 0:00:05]} Nxe4 {[%emt 0:00:10]} 5. Bd3 {[%emt 0:00:08]} Nf6 {[%emt 0:08:20]} 6. O-O {[%emt 0:00:11]} Be7 {[%emt 0:09:49]} 7. h3 {[%emt 0:03:17]} O-O {[%emt 0:00:38]} 8. c3 {[%emt 0:00:23]} d5 {[%emt 0:07:11]} 9. Bc2 {[%emt 0:00:32]} Bd6 {[%emt 0:02:01]} 10. d4 {[%emt 0:04:00]} Re8 {[%emt 0:06:11]} 11. Re1 {[%emt 0:11:22]} Nbd7 {[%emt 0:07:06]} 12. Bg5 {[%emt 0:08:32]} h6 {[%emt 0:09:46]} 13. Bh4 {[%emt 0:00:29]} c6 {[%emt 0:05:27]} 14. Nbd2 {[%emt 0:04:40]} b6 {[%emt 0:06:41]} 15. Nf1 {[%emt 0:03:04]} Ba6 {[%emt 0:05:23]} 16. Bg3 {[%emt 0:15:42]} Qc7 {[%emt 0:08:00]} 17. Bxd6 {[%emt 0:08:25]} Qxd6 {[%emt 0:00:08]} 18. Ne3 {[%emt 0:00:24]} g6 {[%emt 0:01:44]} 19. a4 {[%emt 0:03:35]} Qc7 {[%emt 0:02:51]} 20. Qc1 {[%emt 0:01:16]} Qf4 {[%emt 0:03:54]} 21. a5 {[%emt 0:00:29]} Bb5 {[%emt 0:02:12]} 22. Qd1 {[%emt 0:06:38]} Kh7 {[%emt 0:08:16]} 23. g3 {[%emt 0:01:32]} Qc7 {[%emt 0:00:09]} 24. b3 {[%emt 0:00:40]} Ba6 {[%emt 0:01:38]} 25. axb6 {[%emt 0:02:37]} axb6 {[%emt 0:00:10]} 26. Qd2 {[%emt 0:01:06]} Bb7 {[%emt 0:00:48]} 27. Rxa8 {[%emt 0:01:03]} Bxa8 {[%emt 0:00:07]} 28. Kg2 {[%emt 0:00:20]} c5 {[%emt 0:00:31]} 29. Ng4 {[%emt 0:01:36]} Rxe1 {[%emt 0:03:24]} 30. Qxh6+ {[%emt 0:00:28]} Kg8 {[%emt 0:00:02]} 31. Nxf6+ {[%emt 0:00:47]} Nxf6 {[%emt 0:00:02]} 32. Nxe1 {[%emt 0:00:06]} Ne4 {[%emt 0:00:33]} 33. Qe3 {[%emt 0:02:40]} Bb7 {[%emt 0:00:56]} 34. Bxe4 {[%emt 0:01:19]} dxe4 {[%emt 0:00:36]} 35. Nc2 {[%emt 0:00:19]} cxd4 {[%emt 0:01:41]} 36. Nxd4 {[%emt 0:00:17]} Qd7 {[%emt 0:00:26]} 37. g4 {[%emt 0:00:38]} Qd6 {[%emt 0:00:48]} 38. c4 {[%emt 0:01:05]} Qe5 {[%emt 0:00:27]} 39. Ne2 {[%emt 0:01:13]} Qd6 {[%emt 0:00:32]} 40. Ng3 {[%emt 0:01:50]} Qd1 {[%emt 0:00:39]} 41. Kh2 {[%emt 0:01:02]} Qd6 {[%emt 0:00:27]} 42. h4 {[%emt 0:01:54]} Qe7 {[%emt 0:00:32]} 43. Kh3 {[%emt 0:00:33]} Qf6 {[%emt 0:00:19]} 44. b4 {[%emt 0:01:52]} Qe6 {[%emt 0:00:20]} 45. c5 {[%emt 0:01:51]} bxc5 {[%emt 0:00:07]} 46. bxc5 {[%emt 0:00:12]} Qd5 {[%emt 0:00:45]} 47. h5 {[%emt 0:00:32]} Kh7 {[%emt 0:00:57]} 48. Qf4 {[%emt 0:01:38]} Qe6 {[%emt 0:00:34]} 49. Qd6 {[%emt 0:01:18]} Qb3 {[%emt 0:00:33]} 50. hxg6+ {[%emt 0:00:17]} fxg6 {[%emt 0:00:02]} 51. c6 {[%emt 0:00:21]} Ba6 {[%emt 0:00:08]} 52. Qe7+ {[%emt 0:00:47]} Kg8 {[%emt 0:00:09]} 53. Qxe4 {[%emt 0:00:14]} Kf7 {[%emt 0:00:14]} 54. Kg2 {[%emt 0:01:06]} Bc4 {[%emt 0:00:46]} 55. Qf4+ {[%emt 0:00:21]} Ke6 {[%emt 0:00:08]} 56. Ne4 {[%emt 0:00:13]} Qc3 {[%emt 0:00:43]} 57. Nxc3 {[%emt 0:00:05]} 1-0

[Event "SixDays Budapest March GM A 2025"]
[Site "Budapest"]
[Date "2025.03.29"]
[Round "9.4"]
[White "Ostrovskiy, Aleksandr"]
[Black "Uskov, Artem"]
[Result "1/2-1/2"]
[Annotator "TA"]
[ECO "B51"]
[WhiteElo "2394"]
[BlackElo "2461"]
[PlyCount "40"]
[EventDate "2025.03.23"]
[EventCountry "HUN"]
[SourceTitle "playchess.com"]
[Source "ChessBase"]
[SourceQuality "1"]
[TimeControl "5400+30"]

{[%evp 9,27,16,17,13,33,32,42,33,32,34,43,45,47,20,20,19,22,33,25,29]} 1. e4 {[%emt 0:01:44]} c5 {[%emt 0:00:12]} 2. Nf3 {[%emt 0:00:17]} d6 {[%emt 0:00:05]} 3. Bb5+ {[%emt 0:00:15]} Nd7 {[%emt 0:00:06]} 4. a4 {[%emt 0:00:28][%cal Ba2a4,Ba4a5][%mdl 32]} Ngf6 {[%emt 0:00:34]} 5. Nc3 {[%emt 0:00:22]} a6 {[%emt 0:00:10]} 6. Be2 {[%emt 0:00:36] B51: Sicilian: Moscow Variation (3 Bb5+) without 3...Bd7.} g6 {[%emt 0:00:30]} 7. O-O {[%emt 0:00:38]} Bg7 {[%emt 0:00:30]} 8. a5 {[%emt 0:00:28] White is slightly better.} O-O {[%emt 0:00:39]} 9. d3 {[%emt 0:00:27]} b5 {[%emt 0:00:25]} 10. axb6 {[%emt 0:00:09]} a5 {[%emt 0:00:11]} 11. e5 {[%emt 0:01:23]} dxe5 {[%emt 0:01:00][%cal Oc8b7]} 12. Nd2 {[%emt 0:00:12]} Qxb6 {[%emt 0:00:41]} 13. Nc4 {[%emt 0:00:08]} Qc7 {[%emt 0:00:11]} 14. Bf3 {[%emt 0:01:02] Weighted Error Value: White=0.05 (flawless) /Black=0.03 (flawless)   Inaccurate:     	White=1     	---        OK:         	White=3     	Black=6      Best:        	White=2     	---} Ra6 $146 15. Re1 e6 16. Bd2 Bb7 17. Bxb7 Qxb7 18. Nxa5 Qc7 19. Nc4 Rxa1 20. Qxa1 Nd5 {1-0 Mishra,A (2505)-Raja,H (2482) Saint Louis Spring-B 2022 (3.4)} 1/2-1/2

[Event "SixDays Budapest March GM A 2025"]
[Site "Budapest"]
[Date "2025.03.29"]
[Round "9.5"]
[White "Rohrer, Christophe"]
[Black "Pap, Misa"]
[Result "1/2-1/2"]
[Annotator "TA"]
[ECO "B31"]
[WhiteElo "2266"]
[BlackElo "2457"]
[PlyCount "100"]
[EventDate "2025.03.23"]
[EventCountry "HUN"]
[SourceTitle "playchess.com"]
[Source "ChessBase"]
[SourceQuality "1"]
[TimeControl "5400+30"]

{[%evp 13,100,25,27,14,17,18,24,20,26,-30,39,33,58,30,80,77,124,121,110,73,82,95,129,125,137,114,162,157,151,110,170,152,172,191,216,229,224,219,221,194,220,189,249,171,198,105,206,114,96,114,125,126,140,132,140,95,82,0,0,-196,-196,-200,-194,-255,-246,-263,-107,-152,-152,-152,-154,-162,0,0,0,0,0,0,0,0,6,6,6,6,6,6,6,6,6]} 1. e4 {[%emt 0:00:06]} c5 {[%emt 0:00:08]} 2. Nf3 {[%emt 0:00:11]} Nc6 {[%emt 0:00:04]} 3. Bb5 {[%emt 0:00:16]} g6 {[%emt 0:00:38]} 4. Bxc6 {[%emt 0:00:14]} bxc6 {[%emt 0:00:30]} 5. O-O {[%emt 0:00:29]} Bg7 {[%emt 0:00:05]} 6. Re1 {[%emt 0:00:25]} Nh6 {[%emt 0:00:36] 6...Qc7 is the fancy move.} 7. c3 {[%emt 0:01:02]} O-O {[%emt 0:01:44]} 8. h3 {[%emt 0:00:45] 8.d4 is vanishing. B31: Sicilian: 2...Nc6 3 Bb5 g6.} f5 {[%emt 0:00:24]} 9. e5 {[%emt 0:00:49]} Nf7 {[%emt 0:00:20]} 10. d3 {[%emt 0:01:06] White has an edge.} Rb8 {[%emt 0:02:38]} 11. Qa4 {[%emt 0:07:50]} (11. b3) 11... Rb7 $146 {[%emt 0:31:28]} (11... Qc7 $11) (11... Qc7 12. Bf4 Nd8 13. Qc4+ Ne6 14. Ng5 Rxb2 15. Nxe6 dxe6 16. Nd2 g5 17. Bxg5 Bxe5 18. Qxc5 {½-½ Liang,A (2570)-Fier,A (2582) Saint Louis Spring-B 2018 (2)}) 12. Na3 $14 {[%emt 0:04:26]} h6 {[%emt 0:00:45]} 13. h4 {[%emt 0:01:06]} Qe8 {[%emt 0:13:43]} (13... Qc7 $11) 14. Qc4 $16 {[%emt 0:07:57]} Kh8 {[%emt 0:00:20]} (14... Qd8 $142) 15. Qxc5 {[%emt 0:02:32]} Nd8 {[%emt 0:00:13]} 16. Nd4 {[%emt 0:06:22]} f4 {[%emt 0:02:20]} 17. Nc4 {[%emt 0:05:27]} Qf7 {[%emt 0:00:29] Black is weak on the dark squares} 18. Re4 {[%emt 0:08:42] White has more active pieces.} g5 {[%emt 0:02:45]} 19. b3 {[%emt 0:08:20]} Ne6 {[%emt 0:01:30]} (19... Qh5 $16) 20. Nxe6 $18 {[%emt 0:00:24]} Qxe6 {[%emt 0:00:03]} 21. Ba3 $36 {[%emt 0:01:13][%mdl 2048] Keeping Black busy.} Re8 {[%emt 0:12:37]} (21... Qg6 $16) 22. f3 {[%emt 0:03:29]} Rb5 {[%emt 0:03:03]} 23. Qf2 {[%emt 0:02:00]} (23. Qxa7 c5 $16) 23... Rd5 {[%emt 0:02:23]} 24. d4 {[%emt 0:00:52]} (24. Qxa7 $6 Rxd3 25. hxg5 hxg5 $16) 24... Rb5 {[%emt 0:01:47]} 25. Nb2 {[%emt 0:00:56]} Qg6 {[%emt 0:01:40]} 26. Rae1 {[%emt 0:04:31]} Bf8 {[%emt 0:00:44]} 27. Bc5 {[%emt 0:02:27]} Rb7 {[%emt 0:01:43]} (27... Kg8 $142 28. c4 (28. Bxa7 Ra5 $16) 28... Rb8) 28. c4 {[%emt 0:01:16]} Rd8 {[%emt 0:05:46]} 29. hxg5 {[%emt 0:08:16]} ({White should try} 29. d5 $18) 29... hxg5 {[%emt 0:00:09]} (29... d6 $16 {is a better defense.}) 30. g4 {[%emt 0:00:52]} (30. Nd3 $1 $18) 30... fxg3 {[%emt 0:01:45]} 31. Qxg3 {[%emt 0:00:06]} d6 {[%emt 0:00:02]} 32. Ba3 {[%emt 0:00:33]} Bf5 {[%emt 0:00:19]} 33. R4e2 {[%emt 0:00:07]} dxe5 {[%emt 0:02:10]} 34. Rxe5 {[%emt 0:03:05][%csl Oa7,Oc6,Oe7,Og5] Black has weak pawns} Bg7 {[%emt 0:00:43]} 35. Rxe7 {[%emt 0:00:58]} (35. d5 $16) 35... Rxe7 $11 {[%emt 0:02:04]} (35... Bxd4+ 36. Kf1 Rxe7 37. Bxe7) 36. Rxe7 $2 {[%emt 0:00:06]} (36. Bxe7 $11 {and White is okay.} Bxd4+ 37. Kg2) 36... Bxd4+ $19 {[%emt 0:00:26]} 37. Kg2 {[%emt 0:00:18]} Bf6 $1 {[%emt 0:02:41] This pair of bishops is nice.} 38. Re2 {[%emt 0:00:14] Prevents Rd2} (38. Kg1 $142) 38... g4 $1 {[%emt 0:01:29]} 39. Kf1 {[%emt 0:05:20] [#]} Qg5 {[%emt 0:03:43]} (39... gxf3 $1 $19 {and Black stays clearly on top.} 40. Rh2+ Kg7 41. Qxf3 Bg4) 40. fxg4 {[%emt 0:02:08]} Bxg4 {[%emt 0:00:32]} 41. Rh2+ {[%emt 0:01:01]} Kg8 {[%emt 0:00:04][%mdl 1024] Black has strong compensation.} 42. Rg2 {[%emt 0:01:15] [#]} (42. Nd3 $2 Be2+ 43. Kf2 Qxg3+ (43... Bxd3 44. Qxg5+ Bxg5 45. Rg2 $11) 44. Kxg3 Bxd3 $19 (44... Rxd3+ $2 45. Kf4 $19)) 42... Qc1+ $2 {[%emt 0:01:33]} ({Better is} 42... Kf7 $1 $19 {White must now prevent ...Qf5+.} 43. Qc7+ (43. Qxg4 $2 {is the wrong capture.} Qc1+ $19) 43... Kg6) 43. Qe1 $11 {[%emt 0:00:29] The position is equal.} Qf4+ {[%emt 0:00:30]} 44. Qf2 $1 {[%emt 0:00:54]} Qc1+ {[%emt 0:00:24]} 45. Qe1 {[%emt 0:00:08] The board is on fire.} Qf4+ {[%emt 0:00:55]} 46. Qf2 $1 {[%emt 0:00:05]} Qxf2+ {[%emt 0:01:53]} 47. Kxf2 {[%emt 0:00:20]} Rd2+ {[%emt 0:00:34]} 48. Kf1 {[%emt 0:01:04]} Rxg2 {[%emt 0:00:05]} 49. Kxg2 {[%emt 0:00:04]} Bf5 {[%emt 0:00:08]} 50. Nd1 {[%emt 0:03:01]} Bb1 {[%emt 0:00:07] Black had all chances to win.   Weighted Error Value: White=0.26 (precise) /Black=0.25 (precise)   Loses game:     	White=1     	---        Missed win:     	---       	Black=1      Mistake:       	White=5     	Black=8      Inaccurate:     	White=5     	Black=1      OK:         	White=13    	Black=15     Best:        	White=4     	Black=2      Strong:       	White=2     	Black=2} 1/2-1/2